[Event "Live Chess"]
[Site "Chess.com"]
[Date "2024.06.01"]
[Round "-"]
[White "DoctorMantisTobogganMD"]
[Black "Sweet-O"]
[Result "1-0"]
[WhiteElo "2170"]
[BlackElo "1555"]
[TimeControl "300"]
[EndTime "12:53:19 PDT"]
[Termination "DoctorMantisTobogganMD won by resignation"]

1. e4 {[%clk 0:04:59.2]} 1... e5 {[%clk 0:04:58.7]} 2. Nc3 {[%clk 0:04:58.6]}
2... Nf6 {[%clk 0:04:58.1]} 3. Bc4 {[%clk 0:04:57.2]} 3... Bc5 {[%clk
0:04:57.5]} 4. d3 {[%clk 0:04:56.5]} 4... d6 {[%clk 0:04:57]} 5. f4 {[%clk
0:04:55.9]} 5... c6 {[%clk 0:04:56.4]} 6. Nf3 {[%clk 0:04:55]} 6... b5 {[%clk
0:04:55.9]} 7. Bb3 {[%clk 0:04:53.2]} 7... Ng4 {[%clk 0:04:54.8]} 8. Rf1 {[%clk
0:04:51.2]} 8... Be3 {[%clk 0:04:44.9]} 9. h3 {[%clk 0:04:47.1]} 9... Bxc1
{[%clk 0:04:42.3]} 10. Qxc1 {[%clk 0:04:46.4]} 10... Nf6 {[%clk 0:04:38.2]} 11.
fxe5 {[%clk 0:04:45.1]} 11... dxe5 {[%clk 0:04:38.1]} 12. Nxe5 {[%clk
0:04:44.1]} 12... Be6 {[%clk 0:04:28.2]} 13. Qf4 {[%clk 0:04:37.5]} 13... Qd4
{[%clk 0:04:16.9]} 14. Nf3 {[%clk 0:04:29]} 14... Qd7 {[%clk 0:04:06.5]} 15. g4
{[%clk 0:04:20.5]} 15... Nh5 {[%clk 0:03:57.7]} 16. gxh5 {[%clk 0:04:03.9]}
16... O-O {[%clk 0:03:54.9]} 17. Rg1 {[%clk 0:04:00.5]} 17... b4 {[%clk
0:03:42.4]} 18. Qg3 {[%clk 0:03:54.8]} 18... g6 {[%clk 0:03:35.1]} 19. Ne2
{[%clk 0:03:52.5]} 19... Bxh3 {[%clk 0:03:24.7]} 20. Nf4 {[%clk 0:03:49.8]}
20... Be6 {[%clk 0:03:10.2]} 21. hxg6 {[%clk 0:03:46]} 1-0

[Event "Live Chess"]
[Site "Chess.com"]
[Date "2024.06.01"]
[Round "-"]
[White "jimwad"]
[Black "Silverback7829"]
[Result "1-0"]
[WhiteElo "1269"]
[BlackElo "1049"]
[TimeControl "300"]
[EndTime "12:53:46 PDT"]
[Termination "jimwad won by checkmate"]

1. c4 {[%clk 0:04:57.1]} 1... e5 {[%clk 0:04:57.5]} 2. g3 {[%clk 0:04:56]} 2...
Nc6 {[%clk 0:04:55.7]} 3. Bg2 {[%clk 0:04:55]} 3... Nf6 {[%clk 0:04:52.9]} 4. e3
{[%clk 0:04:53.8]} 4... d6 {[%clk 0:04:51.3]} 5. Nc3 {[%clk 0:04:52.3]} 5... Be7
{[%clk 0:04:48.9]} 6. Nge2 {[%clk 0:04:50.8]} 6... O-O {[%clk 0:04:47.5]} 7. O-O
{[%clk 0:04:50.1]} 7... Be6 {[%clk 0:04:44]} 8. b3 {[%clk 0:04:48.5]} 8... a5
{[%clk 0:04:41.6]} 9. d4 {[%clk 0:04:47.2]} 9... exd4 {[%clk 0:04:39.6]} 10.
exd4 {[%clk 0:04:46.2]} 10... Ng4 {[%clk 0:04:33.2]} 11. d5 {[%clk 0:04:40.2]}
11... Nce5 {[%clk 0:04:22.3]} 12. dxe6 {[%clk 0:04:37.5]} 12... fxe6 {[%clk
0:04:20.2]} 13. Bxb7 {[%clk 0:04:33.9]} 13... Rb8 {[%clk 0:04:17]} 14. Bg2
{[%clk 0:04:31.9]} 14... d5 {[%clk 0:04:08.7]} 15. cxd5 {[%clk 0:04:24.4]} 15...
exd5 {[%clk 0:04:07]} 16. Qxd5+ {[%clk 0:04:22.8]} 16... Qxd5 {[%clk 0:04:03.8]}
17. Bxd5+ {[%clk 0:04:21.4]} 17... Nf7 {[%clk 0:03:51.8]} 18. Bxf7+ {[%clk
0:04:19.6]} 18... Kxf7 {[%clk 0:03:49.4]} 19. Bf4 {[%clk 0:04:14.3]} 19... Kg8
{[%clk 0:03:43.7]} 20. Bxc7 {[%clk 0:04:12]} 20... Rbc8 {[%clk 0:03:40.9]} 21.
Bf4 {[%clk 0:04:10.7]} 21... Rc5 {[%clk 0:03:31.2]} 22. Ne4 {[%clk 0:04:02.6]}
22... Nf6 {[%clk 0:03:24.8]} 23. Nxc5 {[%clk 0:04:00.9]} 23... Bxc5 {[%clk
0:03:21.2]} 24. Rac1 {[%clk 0:03:55.3]} 24... Bb6 {[%clk 0:03:14.9]} 25. Rc6
{[%clk 0:03:51.7]} 25... Ba7 {[%clk 0:03:10.5]} 26. Ra6 {[%clk 0:03:40.7]} 26...
Bc5 {[%clk 0:03:05.9]} 27. Rxa5 {[%clk 0:03:38.3]} 27... Bb6 {[%clk 0:03:02.6]}
28. Rb5 {[%clk 0:03:32.7]} 28... Bd8 {[%clk 0:02:56.9]} 29. a4 {[%clk
0:03:30.1]} 29... Be7 {[%clk 0:02:51.5]} 30. a5 {[%clk 0:03:25.5]} 30... Bd8
{[%clk 0:02:49.4]} 31. b4 {[%clk 0:03:20.2]} 31... Be7 {[%clk 0:02:46.5]} 32.
Rb7 {[%clk 0:03:17.1]} 32... Kf7 {[%clk 0:02:39.3]} 33. Bb8 {[%clk 0:03:09.8]}
33... Rc8 {[%clk 0:02:31.7]} 34. a6 {[%clk 0:03:07.3]} 34... Rc2 {[%clk
0:02:25.3]} 35. Nf4 {[%clk 0:02:55.3]} 35... Ne4 {[%clk 0:02:20.1]} 36. a7
{[%clk 0:02:42.9]} 36... Kf6 {[%clk 0:02:00.3]} 37. Rb6+ {[%clk 0:02:38.7]}
37... Kf7 {[%clk 0:01:53.7]} 38. Ra6 {[%clk 0:02:37.6]} 38... Rb2 {[%clk
0:01:29]} 39. a8=Q {[%clk 0:02:35.2]} 39... Rxb4 {[%clk 0:01:25.9]} 40. Qd5+
{[%clk 0:02:29.1]} 40... Ke8 {[%clk 0:01:19.2]} 41. Qg8+ {[%clk 0:02:13.7]}
41... Kd7 {[%clk 0:01:13.9]} 42. Rd1+ {[%clk 0:02:10.7]} 42... Nd6 {[%clk
0:01:01.4]} 43. Qe6+ {[%clk 0:02:05.5]} 43... Ke8 {[%clk 0:00:56.7]} 44. Bxd6
{[%clk 0:02:03.3]} 44... Rb6 {[%clk 0:00:49.4]} 45. Ra8+ {[%clk 0:02:01.3]}
45... Rb8 {[%clk 0:00:38.3]} 46. Rxb8# {[%clk 0:02:00.2]} 1-0

[Event "Live Chess"]
[Site "Chess.com"]
[Date "2024.06.01"]
[Round "-"]
[White "uselessduffer"]
[Black "bobby_jamesFischer86"]
[Result "1-0"]
[WhiteElo "2430"]
[BlackElo "1614"]
[TimeControl "300"]
[EndTime "12:53:56 PDT"]
[Termination "uselessduffer won by resignation"]

1. e4 {[%clk 0:04:54.7]} 1... c5 {[%clk 0:04:58.6]} 2. Nc3 {[%clk 0:04:51.1]}
2... d6 {[%clk 0:04:57.5]} 3. f4 {[%clk 0:04:49.4]} 3... Nf6 {[%clk 0:04:56.4]}
4. Nf3 {[%clk 0:04:49]} 4... Nc6 {[%clk 0:04:54.7]} 5. Bb5 {[%clk 0:04:46.9]}
5... e6 {[%clk 0:04:53.3]} 6. Bxc6+ {[%clk 0:04:42.8]} 6... bxc6 {[%clk
0:04:52]} 7. d3 {[%clk 0:04:42.6]} 7... Be7 {[%clk 0:04:49.9]} 8. O-O {[%clk
0:04:39.9]} 8... O-O {[%clk 0:04:48.7]} 9. Qe1 {[%clk 0:04:38.8]} 9... d5 {[%clk
0:04:46]} 10. e5 {[%clk 0:04:28.3]} 10... Nd7 {[%clk 0:04:44.7]} 11. b3 {[%clk
0:04:28]} 11... f6 {[%clk 0:04:43.4]} 12. Na4 {[%clk 0:04:15.1]} 12... fxe5
{[%clk 0:04:38.3]} 13. fxe5 {[%clk 0:04:15]} 13... Qc7 {[%clk 0:04:26.1]} 14. c4
{[%clk 0:04:02.5]} 14... d4 {[%clk 0:04:01.1]} 15. Ba3 {[%clk 0:03:47.3]} 15...
Rf5 {[%clk 0:03:21.8]} 16. Qe4 {[%clk 0:02:57.1]} 16... Bb7 {[%clk 0:03:12.1]}
17. Nxd4 {[%clk 0:02:40.3]} 17... Rxe5 {[%clk 0:02:27.1]} 18. Qg4 {[%clk
0:01:34.2]} 18... Nf6 {[%clk 0:01:04.2]} 19. Qg3 {[%clk 0:01:25.7]} 19... Bd6
{[%clk 0:00:57.4]} 20. Rxf6 {[%clk 0:00:47.6]} 20... Rh5 {[%clk 0:00:55.6]} 21.
Qg4 {[%clk 0:00:44.5]} 21... Bxh2+ {[%clk 0:00:53.7]} 22. Kf1 {[%clk 0:00:40.2]}
22... Rf8 {[%clk 0:00:51.8]} 23. Rxf8+ {[%clk 0:00:35.8]} 23... Kxf8 {[%clk
0:00:48.5]} 24. Nxe6+ {[%clk 0:00:35.5]} 1-0

[Event "Live Chess"]
[Site "Chess.com"]
[Date "2024.06.01"]
[Round "-"]
[White "Stanbad1"]
[Black "gmnorfolk"]
[Result "1-0"]
[WhiteElo "2665"]
[BlackElo "2061"]
[TimeControl "300"]
[EndTime "12:53:57 PDT"]
[Termination "Stanbad1 won by resignation"]

1. d4 {[%clk 0:04:55.5]} 1... Nf6 {[%clk 0:04:58.3]} 2. Nc3 {[%clk 0:04:55]}
2... e6 {[%clk 0:04:54.8]} 3. e4 {[%clk 0:04:53.9]} 3... d5 {[%clk 0:04:53.8]}
4. Bg5 {[%clk 0:04:52.7]} 4... Bb4 {[%clk 0:04:50.5]} 5. exd5 {[%clk 0:04:51.9]}
5... Qxd5 {[%clk 0:04:48.6]} 6. Bxf6 {[%clk 0:04:51.1]} 6... gxf6 {[%clk
0:04:47.9]} 7. Ne2 {[%clk 0:04:50.2]} 7... Nc6 {[%clk 0:04:46.6]} 8. Qd2 {[%clk
0:04:45.8]} 8... Bd7 {[%clk 0:04:44.7]} 9. Nxd5 {[%clk 0:04:42]} 9... Bxd2+
{[%clk 0:04:43]} 10. Kxd2 {[%clk 0:04:41.9]} 10... exd5 {[%clk 0:04:41.9]} 11.
Re1 {[%clk 0:04:41.6]} 11... O-O-O {[%clk 0:04:40]} 12. c3 {[%clk 0:04:40.6]}
12... Be6 {[%clk 0:04:35]} 13. g3 {[%clk 0:04:38.3]} 13... Ne7 {[%clk
0:04:30.6]} 14. Bg2 {[%clk 0:04:36.8]} 14... c6 {[%clk 0:04:28.8]} 15. Nf4
{[%clk 0:04:35.6]} 15... Kd7 {[%clk 0:04:26.6]} 16. Nd3 {[%clk 0:04:33.6]} 16...
b6 {[%clk 0:04:21.5]} 17. h4 {[%clk 0:04:30.9]} 17... Nf5 {[%clk 0:04:18.7]} 18.
Nf4 {[%clk 0:04:28.1]} 18... Nd6 {[%clk 0:04:17]} 19. b3 {[%clk 0:04:25.6]}
19... Bf5 {[%clk 0:04:09.8]} 20. Nh5 {[%clk 0:04:23.5]} 20... Ne4+ {[%clk
0:03:42.7]} 21. Bxe4 {[%clk 0:04:20.8]} 21... Bxe4 {[%clk 0:03:39.6]} 22. Nxf6+
{[%clk 0:04:19.6]} 22... Kd6 {[%clk 0:03:34.6]} 23. Nxe4+ {[%clk 0:04:19.5]}
23... dxe4 {[%clk 0:03:34]} 24. Rxe4 {[%clk 0:04:18.4]} 24... f5 {[%clk
0:03:29.1]} 25. Re5 {[%clk 0:04:16.3]} 25... f4 {[%clk 0:03:24.4]} 26. Rhe1
{[%clk 0:04:14.8]} 26... fxg3 {[%clk 0:03:21.8]} 27. fxg3 {[%clk 0:04:14.7]}
27... Rhg8 {[%clk 0:03:20.4]} 28. Re6+ {[%clk 0:04:13.4]} 28... Kc7 {[%clk
0:03:19.2]} 29. Re7+ {[%clk 0:04:12.5]} 29... Rd7 {[%clk 0:03:18.2]} 30. Rxd7+
{[%clk 0:04:12.1]} 30... Kxd7 {[%clk 0:03:17.5]} 31. Re3 {[%clk 0:04:11.7]}
31... Rf8 {[%clk 0:03:13]} 32. Ke2 {[%clk 0:04:09]} 32... a5 {[%clk 0:03:09.7]}
33. c4 {[%clk 0:04:07.9]} 33... Kd6 {[%clk 0:03:08.8]} 34. Rd3 {[%clk
0:04:06.4]} 34... b5 {[%clk 0:03:04.6]} 35. d5 {[%clk 0:04:04.3]} 35... bxc4
{[%clk 0:03:01.8]} 36. bxc4 {[%clk 0:04:03.3]} 36... Kc5 {[%clk 0:02:48.8]} 37.
dxc6 {[%clk 0:04:01.8]} 37... Kxc6 {[%clk 0:02:36.8]} 38. Ke3 {[%clk 0:03:59.9]}
38... a4 {[%clk 0:02:33.5]} 39. Rd5 {[%clk 0:03:56.9]} 39... Rg8 {[%clk
0:02:28]} 40. Kf3 {[%clk 0:03:54.5]} 40... Rf8+ {[%clk 0:02:25.9]} 41. Kg2
{[%clk 0:03:53.1]} 41... Re8 {[%clk 0:02:21.7]} 42. Kf3 {[%clk 0:03:46]} 42...
Rb8 {[%clk 0:02:20.2]} 43. Ra5 {[%clk 0:03:43.8]} 43... Rb4 {[%clk 0:02:13.5]}
44. c5 {[%clk 0:03:43.1]} 44... Kd5 {[%clk 0:02:12.6]} 45. g4 {[%clk 0:03:41]}
45... Rc4 {[%clk 0:02:06.3]} 46. h5 {[%clk 0:03:39.2]} 46... h6 {[%clk
0:02:04.4]} 47. Ra6 {[%clk 0:03:35.2]} 47... Rxc5 {[%clk 0:01:42.7]} 48. Rxa4
{[%clk 0:03:32.1]} 48... Ke5 {[%clk 0:01:36.5]} 49. Kg3 {[%clk 0:03:28.4]} 49...
Rc3+ {[%clk 0:01:32.8]} 50. Kh4 {[%clk 0:03:27.3]} 50... Kf6 {[%clk 0:01:28]}
51. Ra6+ {[%clk 0:03:26]} 51... Kg7 {[%clk 0:01:26.4]} 52. a4 {[%clk 0:03:24.4]}
52... Rc1 {[%clk 0:01:14.2]} 53. a5 {[%clk 0:03:22.3]} 53... Rh1+ {[%clk
0:01:12.6]} 54. Kg3 {[%clk 0:03:20.8]} 54... Rg1+ {[%clk 0:01:11.4]} 55. Kf3
{[%clk 0:03:20.3]} 55... Rf1+ {[%clk 0:01:10.6]} 56. Kg2 {[%clk 0:03:19.6]}
56... Ra1 {[%clk 0:01:09.3]} 57. Rg6+ {[%clk 0:03:16.2]} 57... Kh7 {[%clk
0:01:06.5]} 58. a6 {[%clk 0:03:15.8]} 58... Ra2+ {[%clk 0:01:05.6]} 59. Kg3
{[%clk 0:03:14.7]} 59... Ra3+ {[%clk 0:01:04.8]} 60. Kh4 {[%clk 0:03:14.4]}
60... Ra4 {[%clk 0:01:02.8]} 61. Rb6 {[%clk 0:03:13.4]} 61... Ra1 {[%clk
0:01:01.7]} 62. Rb7+ {[%clk 0:03:12.4]} 62... Kg8 {[%clk 0:00:59.1]} 63. a7
{[%clk 0:03:11.9]} 1-0

[Event "Live Chess"]
[Site "Chess.com"]
[Date "2024.06.01"]
[Round "-"]
[White "koekoekoe"]
[Black "WorcesterYork"]
[Result "0-1"]
[WhiteElo "2056"]
[BlackElo "2499"]
[TimeControl "300"]
[EndTime "12:53:58 PDT"]
[Termination "WorcesterYork won by resignation"]

1. d4 {[%clk 0:04:59.2]} 1... c5 {[%clk 0:04:58.3]} 2. d5 {[%clk 0:04:58]} 2...
d6 {[%clk 0:04:57.4]} 3. c4 {[%clk 0:04:57.6]} 3... g6 {[%clk 0:04:56.4]} 4. Nc3
{[%clk 0:04:57.2]} 4... Bg7 {[%clk 0:04:55.8]} 5. e4 {[%clk 0:04:56.8]} 5... a6
{[%clk 0:04:54.9]} 6. Bf4 {[%clk 0:04:56.4]} 6... Nf6 {[%clk 0:04:51.8]} 7. Nf3
{[%clk 0:04:56]} 7... O-O {[%clk 0:04:50.9]} 8. h3 {[%clk 0:04:55.2]} 8... Nbd7
{[%clk 0:04:44.7]} 9. Bd3 {[%clk 0:04:53.7]} 9... Rb8 {[%clk 0:04:43.8]} 10. O-O
{[%clk 0:04:52.6]} 10... Ne8 {[%clk 0:04:42]} 11. Qc2 {[%clk 0:04:50.4]} 11...
Nc7 {[%clk 0:04:41.1]} 12. a3 {[%clk 0:04:47.9]} 12... b5 {[%clk 0:04:40.1]} 13.
b3 {[%clk 0:04:39]} 13... b4 {[%clk 0:04:35.2]} 14. axb4 {[%clk 0:04:34.5]}
14... cxb4 {[%clk 0:04:35.1]} 15. Ne2 {[%clk 0:04:33.7]} 15... Bxa1 {[%clk
0:04:34.7]} 16. Rxa1 {[%clk 0:04:33.3]} 16... Re8 {[%clk 0:04:33.6]} 17. Bh6
{[%clk 0:04:31.2]} 17... f6 {[%clk 0:04:32.6]} 18. e5 {[%clk 0:04:26.5]} 18...
Nxe5 {[%clk 0:04:31.6]} 19. Nxe5 {[%clk 0:04:25.4]} 19... dxe5 {[%clk
0:04:30.2]} 20. Bxg6 {[%clk 0:04:24.6]} 20... e6 {[%clk 0:04:10.8]} 21. Bxe8
{[%clk 0:03:57.6]} 21... Qxe8 {[%clk 0:04:10.7]} 22. d6 {[%clk 0:03:39.2]} 22...
Na8 {[%clk 0:04:08.4]} 23. c5 {[%clk 0:03:32.2]} 23... Bb7 {[%clk 0:04:06.5]}
24. Rd1 {[%clk 0:03:03.5]} 24... Bd5 {[%clk 0:04:04.9]} 25. Qd3 {[%clk
0:02:50.3]} 25... Rc8 {[%clk 0:04:02.3]} 26. Qg3+ {[%clk 0:02:47]} 26... Qg6
{[%clk 0:04:01.3]} 27. Be3 {[%clk 0:02:41.2]} 27... Kf7 {[%clk 0:03:56.9]} 28.
Qxg6+ {[%clk 0:02:36.8]} 28... hxg6 {[%clk 0:03:55.8]} 29. Rc1 {[%clk
0:02:30.3]} 29... Ke8 {[%clk 0:03:52.6]} 30. Bh6 {[%clk 0:02:23.6]} 30... Kd7
{[%clk 0:03:51.7]} 31. Bf8 {[%clk 0:02:22.3]} 31... Bxb3 {[%clk 0:03:50.6]} 32.
Be7 {[%clk 0:02:16.7]} 32... f5 {[%clk 0:03:48.4]} 33. Bf6 {[%clk 0:02:09.2]}
33... Bd5 {[%clk 0:03:44.3]} 34. Bxe5 {[%clk 0:02:07.2]} 34... a5 {[%clk
0:03:42.8]} 35. Nd4 {[%clk 0:02:05.9]} 35... a4 {[%clk 0:03:41.5]} 36. Nc2
{[%clk 0:01:46.7]} 36... Rxc5 {[%clk 0:03:39.1]} 37. Na3 {[%clk 0:01:46.6]}
37... Rxc1+ {[%clk 0:03:38]} 0-1

[Event "Live Chess"]
[Site "Chess.com"]
[Date "2024.06.01"]
[Round "-"]
[White "f4nomore"]
[Black "chessfiction"]
[Result "0-1"]
[WhiteElo "1201"]
[BlackElo "2395"]
[TimeControl "300"]
[EndTime "12:54:02 PDT"]
[Termination "chessfiction won by resignation"]

1. b3 {[%clk 0:04:56.1]} 1... d5 {[%clk 0:04:58]} 2. Bb2 {[%clk 0:04:54.6]} 2...
Nc6 {[%clk 0:04:57.9]} 3. e3 {[%clk 0:04:53.4]} 3... Nf6 {[%clk 0:04:56.1]} 4.
f4 {[%clk 0:04:51.2]} 4... Bf5 {[%clk 0:04:54.7]} 5. d3 {[%clk 0:04:47.5]} 5...
Qd6 {[%clk 0:04:52.9]} 6. Nf3 {[%clk 0:04:44.9]} 6... O-O-O {[%clk 0:04:51.3]}
7. Nbd2 {[%clk 0:04:41.1]} 7... Ng4 {[%clk 0:04:49.4]} 8. Be2 {[%clk 0:04:36.7]}
8... Nxe3 {[%clk 0:04:47.8]} 9. Qc1 {[%clk 0:04:34.5]} 9... Nxg2+ {[%clk
0:04:46.8]} 10. Kf2 {[%clk 0:04:33.4]} 10... Nxf4 {[%clk 0:04:46.2]} 11. c4
{[%clk 0:04:24.7]} 11... Bxd3 {[%clk 0:04:41.4]} 12. Ba3 {[%clk 0:04:03.8]}
12... Qg6 {[%clk 0:04:33.4]} 13. Rg1 {[%clk 0:03:55.5]} 13... Nh3+ {[%clk
0:04:30.9]} 14. Kf1 {[%clk 0:03:46.1]} 14... Nxg1 {[%clk 0:04:14.1]} 15. Nxg1
{[%clk 0:03:43.3]} 15... Nd4 {[%clk 0:04:08.1]} 16. Qd1 {[%clk 0:03:23.3]} 16...
e5 {[%clk 0:03:57.9]} 17. Ngf3 {[%clk 0:03:14.6]} 17... Bxe2+ {[%clk 0:03:55.8]}
18. Qxe2 {[%clk 0:03:08.2]} 18... Nxe2 {[%clk 0:03:54.5]} 19. Kxe2 {[%clk
0:03:07.3]} 19... Bxa3 {[%clk 0:03:54.1]} 20. Rg1 {[%clk 0:03:04.7]} 20... e4
{[%clk 0:03:51.1]} 21. Rxg6 {[%clk 0:02:59.9]} 21... exf3+ {[%clk 0:03:50.9]}
22. Nxf3 {[%clk 0:02:57.8]} 22... hxg6 {[%clk 0:03:50.3]} 23. cxd5 {[%clk
0:02:53.8]} 23... Rxd5 {[%clk 0:03:50.2]} 0-1

[Event "Live Chess"]
[Site "Chess.com"]
[Date "2024.06.01"]
[Round "-"]
[White "GwaryTek"]
[Black "grillage"]
[Result "0-1"]
[WhiteElo "1973"]
[BlackElo "1870"]
[TimeControl "300"]
[EndTime "12:54:14 PDT"]
[Termination "grillage won on time"]

1. d4 {[%clk 0:04:55.4]} 1... e6 {[%clk 0:04:58.5]} 2. Nf3 {[%clk 0:04:48.8]}
2... Nf6 {[%clk 0:04:56.8]} 3. c4 {[%clk 0:04:40]} 3... Bb4+ {[%clk 0:04:53.6]}
4. Nc3 {[%clk 0:04:37.8]} 4... c5 {[%clk 0:04:48.2]} 5. g3 {[%clk 0:04:35.8]}
5... O-O {[%clk 0:04:44.3]} 6. Bg2 {[%clk 0:04:34.1]} 6... d6 {[%clk 0:04:31.1]}
7. O-O {[%clk 0:04:32]} 7... Bxc3 {[%clk 0:04:30.3]} 8. bxc3 {[%clk 0:04:31.8]}
8... Nc6 {[%clk 0:04:24.8]} 9. Rb1 {[%clk 0:04:21]} 9... e5 {[%clk 0:04:18.9]}
10. h3 {[%clk 0:04:01.4]} 10... Rb8 {[%clk 0:04:04]} 11. Be3 {[%clk 0:03:04.3]}
11... Qe7 {[%clk 0:03:49.3]} 12. Ng5 {[%clk 0:02:05.3]} 12... Na5 {[%clk
0:03:21.9]} 13. Qa4 {[%clk 0:01:59.6]} 13... b6 {[%clk 0:03:19.8]} 14. Qxa5
{[%clk 0:01:18.6]} 14... bxa5 {[%clk 0:03:16.6]} 15. Rxb8 {[%clk 0:01:18.5]}
15... Ba6 {[%clk 0:03:12.9]} 16. Rfb1 {[%clk 0:01:07.7]} 16... h6 {[%clk
0:03:07.3]} 17. Ne4 {[%clk 0:00:52.1]} 17... Rxb8 {[%clk 0:02:44.3]} 18. Rxb8+
{[%clk 0:00:49.8]} 18... Kh7 {[%clk 0:02:43.7]} 19. dxc5 {[%clk 0:00:33.2]}
19... Nxe4 {[%clk 0:02:39.8]} 20. Bxe4+ {[%clk 0:00:30.6]} 20... g6 {[%clk
0:02:37.2]} 21. cxd6 {[%clk 0:00:28.8]} 21... Qxd6 {[%clk 0:02:35.1]} 22. Ra8
{[%clk 0:00:10.9]} 22... Qd1+ {[%clk 0:02:30.7]} 23. Kg2 {[%clk 0:00:09.4]}
23... Qxe2 {[%clk 0:02:28.9]} 24. Rxa7 {[%clk 0:00:06.1]} 24... Bxc4 {[%clk
0:02:22]} 25. g4 {[%clk 0:00:02.2]} 25... Kg7 {[%clk 0:02:18.9]} 0-1

[Event "Live Chess"]
[Site "Chess.com"]
[Date "2024.06.01"]
[Round "-"]
[White "Eva3337"]
[Black "ShanthamGrarks"]
[Result "0-1"]
[WhiteElo "1156"]
[BlackElo "1912"]
[TimeControl "300"]
[EndTime "12:54:37 PDT"]
[Termination "ShanthamGrarks won by resignation"]

1. e4 {[%clk 0:04:55.7]} 1... e5 {[%clk 0:04:55.5]} 2. c3 {[%clk 0:04:49.9]}
2... d5 {[%clk 0:04:54.6]} 3. Bd3 {[%clk 0:04:45.9]} 3... Nf6 {[%clk 0:04:51.8]}
4. Qe2 {[%clk 0:04:42.2]} 4... c6 {[%clk 0:04:47.9]} 5. Bc2 {[%clk 0:04:38.4]}
5... Bd6 {[%clk 0:04:45.5]} 6. d3 {[%clk 0:04:35.6]} 6... Bg4 {[%clk 0:04:42.9]}
7. f3 {[%clk 0:04:22.5]} 7... Bh5 {[%clk 0:04:41.5]} 8. Nh3 {[%clk 0:04:07.5]}
8... Nbd7 {[%clk 0:04:38.1]} 9. Bg5 {[%clk 0:03:49.5]} 9... Qb6 {[%clk
0:04:34.1]} 10. b3 {[%clk 0:03:43.9]} 10... O-O {[%clk 0:04:26.3]} 11. Nf2
{[%clk 0:02:58.9]} 11... h6 {[%clk 0:04:20.9]} 12. Bh4 {[%clk 0:02:54.8]} 12...
d4 {[%clk 0:04:17.3]} 13. c4 {[%clk 0:02:51]} 13... Bb4+ {[%clk 0:04:14.9]} 14.
Nd2 {[%clk 0:02:47.2]} 14... Qa5 {[%clk 0:04:12.9]} 15. Rg1 {[%clk 0:02:30.7]}
15... Bc3 {[%clk 0:04:09.9]} 16. Rd1 {[%clk 0:02:26.1]} 16... Qxa2 {[%clk
0:04:08.5]} 17. Rc1 {[%clk 0:02:21.9]} 17... Bg6 {[%clk 0:03:57.2]} 18. g4
{[%clk 0:02:18.8]} 18... b5 {[%clk 0:03:48.5]} 19. cxb5 {[%clk 0:02:09.3]} 19...
Qb2 {[%clk 0:03:46.4]} 20. g5 {[%clk 0:02:06.2]} 20... Qxc1+ {[%clk 0:03:44.7]}
21. Bd1 {[%clk 0:02:00.6]} 21... hxg5 {[%clk 0:03:38.2]} 22. Bxg5 {[%clk
0:01:58.7]} 22... Nh5 {[%clk 0:03:37.2]} 23. Be7 {[%clk 0:01:34.7]} 23... Nf4
{[%clk 0:03:34.1]} 0-1